[Event "2nd Bassano Easter 2022"]
[Site "Bassano del Grappa"]
[Date "2022.04.17"]
[Round "8.3"]
[White "Baum, Jonasz"]
[Black "Postny, Evgeny"]
[Result "1-0"]
[ECO "E20"]
[WhiteElo "2287"]
[BlackElo "2567"]
[Annotator "TA"]
[PlyCount "87"]
[EventDate "2022.04.14"]
[EventType "swiss"]
[EventCountry "ITA"]
[SourceTitle "playchess.com"]
[Source "ChessBase"]
[SourceQuality "1"]
[TimeControl "30/3600+30:1800+30"]

{[%evp 10,87,0,0,4,1,0,-4,18,0,58,17,17,10,67,31,52,0,34,38,39,20,26,14,6,4,0,-8,73,68,236,237,224,223,333,340,327,335,403,415,366,350,397,403,348,320,301,271,264,277,265,207,192,212,237,237,389,383,335,252,504,425,1163,1231,1200,1180,1083,1059,895,831,1601,1485,977,969,6613,6414,6352,6132,1856,1180]} 1. d4 {[%emt 0:00:02]} Nf6 {[%emt 0:03:00]} 2. c4 {[%emt 0:00:24]} e6 {[%emt 0:00:06]} 3. Nc3 {[%emt 0:00:21]} Bb4 {[%emt 0:00:06]} 4. g3 {[%emt 0:00:21]} O-O {[%emt 0:01:18]} 5. Bg2 {[%emt 0:00:04]} Bxc3+ {[%emt 0:00:38]} 6. bxc3 {[%emt 0:00:07]} d6 {[%emt 0:00:09] E20: Nimzo-Indian: 4 g3 and 4 f3.} 7. Nf3 {[%emt 0:00:11]} Nc6 {[%emt 0:00:21]} 8. Qd3 $1 {[%emt 0:00:14][%mdl 4] now scores much better than the old 8.0-0.} Re8 {[%emt 0:03:06] The position is equal.} 9. O-O {[%emt 0:01:42]} Bd7 {[%emt 0:02:28]} (9... e5 $11 10. Nd2 Bg4) 10. e4 {[%emt 0:01:39]} e5 {[%emt 0:00:15]} 11. Nd2 {[%emt 0:00:31] [#]} Na5 $146 {[%emt 0:05:30]} (11... Qc8 $11) ({Predecessor:} 11... Qc8 12. Nb3 Bh3 13. d5 Nb8 14. c5 dxc5 15. Nxc5 Bxg2 16. Kxg2 c6 17. d6 Nfd7 {0-1 (46) Lumachi,G (2306)-Tratar,M (2441) Trieste 2020}) 12. f4 {[%emt 0:14:22]} (12. Nb3 $5 {[%cal Rb3a5]} c5 13. Bg5 $14 (13. dxc5 dxc5 14. Bg5 b6 $14)) 12... c5 {[%emt 0:01:35]} 13. d5 {[%emt 0:11:55]} (13. fxe5 $14 dxe5 14. d5 (14. dxc5 Qc7 $15)) 13... b5 {[%emt 0:04:44]} 14. cxb5 {[%emt 0:03:22]} c4 $1 {[%emt 0:00:28]} 15. Qe3 {[%emt 0:01:22]} (15. Nxc4 $2 Bxb5 16. Qf3 Nxc4 $19) 15... Ng4 {[%emt 0:02:34]} 16. Qf3 {[%emt 0:01:42]} Qb6+ {[%emt 0:00:15]} 17. Kh1 {[%emt 0:00:08] Threatening f5.} Ne3 {[%emt 0:00:21] Pair of Knights!} 18. Rg1 {[%emt 0:04:45]} Nxg2 {[%emt 0:16:19]} (18... Bg4 $1 $11 19. Qf2 Nd1 20. Qxb6 axb6) 19. Qxg2 {[%emt 0:04:45]} f5 $2 {[%emt 0:06:30] [#] A mistake that costs the game.} ({Black should try} 19... Nb7 $14) 20. g4 $1 $18 {[%emt 0:01:09]} fxe4 {[%emt 0:03:42]} 21. f5 {[%emt 0:00:01]} Qxb5 {[%emt 0:08:48]} (21... e3 22. Ne4) (21... Rf8 {was worth a try.} 22. Nxe4 Nb7) 22. Nxe4 {[%emt 0:00:18]} Nb7 {[%emt 0:00:06]} 23. Be3 {[%emt 0:04:22] Hoping for Rab1.} Rf8 {[%emt 0:01:54]} 24. Rab1 {[%emt 0:01:13]} Qa6 {[%emt 0:00:06]} 25. f6 {[%emt 0:04:06]} Nc5 {[%emt 0:03:41]} 26. fxg7 {[%emt 0:01:44]} Kxg7 {[%emt 0:00:26]} 27. Bxc5 {[%emt 0:02:00]} (27. Nxc5 dxc5 28. Bxc5 Rf4 $18) 27... dxc5 {[%emt 0:00:05]} 28. Nxc5 {[%emt 0:00:50]} Qd6 {[%emt 0:01:18] [#]} 29. Rb7 $1 {[%emt 0:04:38]} Rf7 {[%emt 0:00:53]} 30. Rxd7 {[%emt 0:00:00]} ({Weaker is} 30. Ne6+ Kh8 $11) 30... Rxd7 {[%emt 0:00:00]} 31. Nxd7 {[%emt 0:03:22][%cal Og2e4]} Qxd7 {[%emt 0:00:10][%mdl 4096] Endgame KQR-KQR} 32. Qe4 {[%emt 0:00:33]} Re8 {[%emt 0:00:13]} (32... Qd6 33. Rb1 (33. Qxc4 Rc8 $16) 33... Kg8 34. Qxc4 Rf8) 33. Rf1 {[%emt 0:10:33]} Qd6 {[%emt 0:03:15]} 34. Qxc4 {[%emt 0:07:37] And now Qe4 would win.} ({Not} 34. Qf3 Rd8 $16) 34... e4 $2 {[%emt 0:00:07]} (34... Rd8 {was necessary.} 35. Rd1 Rf8) 35. Qd4+ {[%emt 0:00:27] White is clearly winning.} Kg8 {[%emt 0:04:39]} (35... Qe5 $142 36. Qxa7+ Re7) 36. Rf5 {[%emt 0:09:02]} h6 {[%emt 0:03:53] Against Rg5+} 37. Rf6 {[%emt 0:01:16]} Qe5 {[%emt 0:00:07]} 38. Qxe5 {[%emt 0:02:49]} Rxe5 {[%emt 0:00:05] KR-KR} 39. Rf5 {[%emt 0:00:57]} Re8 {[%emt 0:00:28]} 40. Kg2 {[%emt 0:00:52] aiming for d6.} Rc8 {[%emt 0:01:20]} 41. d6 {[%emt 0:00:29][%cal Bd5d6,Bd6d7][%mdl 32] d7 would kill now.} Rd8 {[%emt 0:00:27]} 42. Rd5 {[%emt 0:00:10] White threatens d7 and mate.} Kf7 {[%emt 0:00:06]} 43. d7 {[%emt 0:00:57]} Ke6 {[%emt 0:00:15]} 44. c4 {[%emt 0:00:11] Weighted Error Value: White=0.13 (very precise) /Black=0.51} 1-0

[Event "2nd Bassano Easter 2022"]
[Site "Bassano del Grappa"]
[Date "2022.04.17"]
[Round "8.4"]
[White "Kalogridis, Antonios"]
[Black "Krasteva, Beloslava"]
[Result "1-0"]
[ECO "E48"]
[WhiteElo "2322"]
[BlackElo "2246"]
[Annotator "TA"]
[PlyCount "78"]
[EventDate "2022.04.14"]
[EventType "swiss"]
[EventCountry "ITA"]
[SourceTitle "playchess.com"]
[Source "ChessBase"]
[SourceQuality "1"]
[TimeControl "30/3600+30:1800+30"]

{[%evp 11,78,5,5,-14,-10,-21,4,0,0,0,0,0,63,49,50,44,56,63,70,54,55,43,75,98,80,94,110,99,83,0,67,0,0,-8,0,0,0,0,0,0,0,0,0,0,0,0,0,-15,0,0,8,8,8,8,10,8,26,40,58,54,67,66,66,64,60,48,60,47,49]} 1. d4 {[%emt 0:00:01]} Nf6 {[%emt 0:03:11]} 2. c4 {[%emt 0:00:03]} e6 {[%emt 0:00:04]} 3. Nc3 {[%emt 0:00:03]} Bb4 {[%emt 0:00:04]} 4. e3 {[%emt 0:00:03]} O-O {[%emt 0:00:43]} 5. Bd3 {[%emt 0:00:02]} d5 {[%emt 0:00:10]} 6. cxd5 {[%emt 0:00:04]} exd5 {[%emt 0:00:27]} 7. a3 {[%emt 0:00:04] E48: Nimzo-Indian: Rubinstein: 5 Bd3 d5 including 6 Ne2, but excluding 6 a3.} Bd6 {[%emt 0:01:24]} 8. Qc2 {[%emt 0:00:24]} a6 {[%emt 0:02:08]} 9. Nge2 {[%emt 0:00:08] The position is equal.} Re8 {[%emt 0:01:00]} 10. O-O {[%emt 0:00:07]} Nbd7 {[%emt 0:00:52]} 11. b4 {[%emt 0:00:05] [#]} c6 $146 {[%emt 0:11:26]} (11... Nf8 $11) ({Predecessor:} 11... b6 12. b5 Nf8 13. f3 Ne6 14. Kh1 Bf8 15. Bb2 axb5 16. Bxb5 Bd7 17. a4 {½-½ (17) Nisipeanu,L (2652)-Lodici,L (2537) Cattolica 2022}) 12. f3 $1 $14 {[%emt 0:07:19][%cal Bf2f3,Bf3e4,Be4e5][%mdl 32]} a5 {[%emt 0:01:02]} 13. Rb1 {[%emt 0:01:36]} axb4 {[%emt 0:01:53]} 14. axb4 {[%emt 0:02:21]} Nf8 {[%emt 0:08:39]} 15. e4 {[%emt 0:04:17]} dxe4 {[%emt 0:02:48]} 16. fxe4 {[%emt 0:00:05]} Bc7 {[%emt 0:04:06]} 17. e5 {[%emt 0:14:49]} Nd5 {[%emt 0:02:06]} 18. Ne4 {[%emt 0:00:09]} Ne6 {[%emt 0:02:22] Prevents Ng5.} 19. Kh1 {[%emt 0:04:54]} Rf8 {[%emt 0:05:36]} 20. Rf3 {[%emt 0:07:22] &Bianco is more active.} (20. b5 $16) 20... f6 {[%emt 0:05:16]} ({Black should play} 20... Qh4 $11 21. g3 Qh5) 21. N4g3 {[%emt 0:09:55]} (21. exf6 $14 Kh8 22. b5 Nxf6 23. bxc6 Nxe4 24. Bxe4 bxc6 25. Qxc6) 21... fxe5 $11 {[%emt 0:08:36] Hoping for ...Rxf3.} 22. Bxh7+ {[%emt 0:01:07]} Kh8 {[%emt 0:00:01] ...Rxf3 is the strong threat.} 23. Nf5 {[%emt 0:01:57] Black must now prevent Rh3.} Ng5 {[%emt 0:01:28] Inhibits Rh3.} (23... Kxh7 $2 {leads to mate.} 24. Ne7+ g6 25. Qxg6+ Kh8 26. Qh6#) 24. Bxg5 {[%emt 0:00:32]} Qxg5 {[%emt 0:00:01]} 25. Rh3 {[%emt 0:04:37]} Rf6 $1 {[%emt 0:01:32]} (25... Bxf5 $2 26. Bxf5+ Qh6 27. Rxh6+ $18) 26. dxe5 {[%emt 0:02:44] Chess con chili.} Bxf5 {[%emt 0:02:20][%mdl 64] [#] Remove Defender} 27. Bxf5+ {[%emt 0:00:46]} Rh6 {[%emt 0:00:07]} 28. Rxh6+ {[%emt 0:02:15]} Qxh6 {[%emt 0:03:08]} 29. Qe4 {[%emt 0:00:16] [#]} Nf6 $1 {[%emt 0:00:41]} 30. Qf4 {[%emt 0:00:00] And now Qxh6+ would win.} ({Much weaker is} 30. Qd4 Re8 31. Qf2 Rxe5 $15) (30. Qc4 Bxe5) 30... Nd5 {[%emt 0:00:00]} ({But not} 30... Qxf4 31. Nxf4 Nd5 32. Nxd5 cxd5 33. e6 $16) 31. Qxh6+ {[%emt 0:05:12]} gxh6 {[%emt 0:01:04]} 32. e6 {[%emt 0:00:20]} Kg7 {[%emt 0:05:26]} 33. b5 {[%emt 0:12:50]} cxb5 {[%emt 0:02:32]} 34. Be4 {[%emt 0:02:11]} Nf6 {[%emt 0:07:54] White is slightly better.} 35. Bxb7 {[%emt 0:01:03]} Re8 {[%emt 0:00:51]} 36. Nd4 {[%emt 0:01:37] aiming for Bc6.} Bb6 {[%emt 0:01:15]} 37. Nf5+ {[%emt 0:00:57]} Kg6 {[%emt 0:00:39]} 38. Nh4+ {[%emt 0:00:11]} Kh7 {[%emt 0:00:56]} 39. Rxb5 {[%emt 0:03:45]} Rxe6 {[%emt 0:00:07] Weighted Error Value: White=0.07 (flawless) /Black=0.12 (very precise)} 1-0

[Event "2nd Bassano Easter 2022"]
[Site "Bassano del Grappa"]
[Date "2022.04.17"]
[Round "8.5"]
[White "Bosiocic, Marin"]
[Black "Petkidis, Anthony"]
[Result "*"]
[ECO "A11"]
[WhiteElo "2522"]
[BlackElo "2420"]
[Annotator "TA"]
[PlyCount "28"]
[EventDate "2022.04.14"]
[EventType "swiss"]
[EventCountry "ITA"]
[SourceTitle "playchess.com"]
[Source "ChessBase"]
[SourceQuality "1"]
[TimeControl "30/3600+30:1800+30"]

{[%evp 10,28,10,7,15,10,15,0,15,0,19,0,0,0,0,-32,-28,-29,0,-31,-21]} 1. Nf3 {[%emt 0:03:14]} d5 {[%emt 0:00:13]} 2. g3 {[%emt 0:00:07]} Bg4 {[%emt 0:00:41]} 3. Bg2 {[%emt 0:58:39]} e6 {[%emt 0:00:21]} 4. O-O {[%emt 0:00:00]} Nf6 {[%emt 0:00:29]} 5. c4 {[%emt 0:00:00]} c6 {[%emt 0:00:18]} 6. d3 {[%emt 0:00:00]} dxc4 {[%emt 0:02:28] Nowadays more popular than 6...Nbd7. A11: English Opening: 1...c6.} 7. dxc4 {[%emt 0:00:00]} Qxd1 {[%emt 0:00:06]} 8. Rxd1 {[%emt 0:00:00]} Nbd7 {[%emt 0:00:03] The position is equal.} 9. Nc3 {[%emt 0:00:00]} O-O-O {[%emt 0:01:19]} 10. Be3 {[%emt 0:00:00] [#]} Bxf3 $146 {[%emt 0:00:47]} ({Predecessor:} 10... Bc5 11. Bxc5 Nxc5 12. Ne5 Bh5 13. b4 Ncd7 14. Nd3 Nb6 15. b5 cxb5 16. c5 Nbd5 17. Nxb5 Bxe2 {½-½ (91) Szeberenyi,A (2380)-Terbe,J (2305) Budapest 2021}) 11. Bxf3 {[%emt 0:00:00]} Bc5 {[%emt 0:00:12]} 12. Bxc5 {[%emt 0:00:00]} Nxc5 {[%emt 0:00:07]} 13. b4 {[%emt 0:00:00]} Ncd7 {[%emt 0:00:19]} 14. c5 {[%emt 0:00:00]} Kc7 {[%emt 0:03:26] Not much happened in this game.  Weighted Error Value: White=0.12 (very precise) /Black=0.08 (flawless)} *

[Event "2nd Bassano Easter 2022"]
[Site "Bassano del Grappa"]
[Date "2022.04.17"]
[Round "8.6"]
[White "Bosiocic, Marin"]
[Black "Petkidis, Anthony"]
[Result "1-0"]
[ECO "A30"]
[WhiteElo "2522"]
[BlackElo "2420"]
[Annotator "TA"]
[PlyCount "161"]
[EventDate "2022.04.14"]
[EventType "swiss"]
[EventCountry "ITA"]
[SourceTitle "playchess.com"]
[Source "ChessBase"]
[SourceQuality "1"]
[TimeControl "30/3600+30:1800+30"]

{[%evp 24,161,25,34,47,41,78,62,64,42,69,60,53,47,68,53,76,69,62,56,208,114,114,101,113,111,116,106,83,96,124,95,147,132,124,132,181,162,231,224,236,231,812,795,784,351,349,281,268,262,389,377,382,373,467,466,466,467,463,454,408,373,374,281,281,278,264,273,253,253,271,276,456,453,588,573,922,1077,11469,6028,4322,3249,2078,1704,1370,6612,761,209,204,209,461,368,205,195,195,167,167,152,167,118,118,111,167,167,247,281,29962,29959,29959,29961,29965,29967,29969,29970,29970,29970,29970,29971,29971,29970,29972,29973,29973,29974,29974,29974,29976,29977,29978,29979,29977,29975,29981,29982,29982,29983,29983,29984,29998,16]} 1. Nf3 {[%emt 0:00:11]} c5 {[%emt 0:02:38]} 2. c4 {[%emt 0:00:10]} Nf6 {[%emt 0:01:44]} 3. g3 {[%emt 0:00:05]} b6 {[%emt 0:01:32]} 4. Bg2 {[%emt 0:00:07]} Bb7 {[%emt 0:00:07]} 5. O-O {[%emt 0:00:09]} g6 {[%emt 0:01:45]} 6. d4 {[%emt 0:00:19]} cxd4 {[%emt 0:00:11]} 7. Qd2 {[%emt 1:02:59]} d3 8. Qxd3 {[%emt 0:00:00]} Bg7 {[%emt 0:00:50]} 9. Qd4 {[%emt 0:00:00]} d6 {[%emt 0:01:11]} 10. Nc3 {[%emt 0:00:00]} Nbd7 {[%emt 0:01:42]} 11. Be3 {[%emt 0:00:00]} Rb8 {[%emt 0:54:20]} 12. Rac1 Rc8 {[%emt 0:00:00]} 13. Rfd1 {[%emt 0:00:00]} h6 {[%emt 0:00:00] A30: Symmetrical English: Double Fianchetto and Hedgehog.} 14. b3 {[%emt 0:00:00]} O-O {[%emt 0:00:00][%cal Of6e4]} 15. Qd2 $1 {[%emt 0:00:00]} h5 {[%emt 0:00:00] [#] White is slightly better.} 16. Bd4 $146 {[%emt 0:00:00]} ({Predecessor:} 16. h3 a6 17. Bh6 Rc5 18. Be3 Rc8 19. Bh6 Rc5 20. Be3 Rc8 {½-½ (18) Olsen,H (2345)-Lund,S (2292) Dianalund 2005}) 16... Ne4 {[%emt 0:00:00]} 17. Nxe4 {[%emt 0:00:00]} Bxe4 {[%emt 0:00:00]} 18. Bxg7 {[%emt 0:00:00]} Kxg7 {[%emt 0:00:00]} 19. Bh3 {[%emt 0:00:00]} Bb7 {[%emt 0:00:00]} 20. Nd4 {[%emt 0:00:00][%cal Od4f5]} (20. Bxd7 Qxd7 21. Nh4 Qc6 $11) 20... Rh8 {[%emt 0:00:00]} 21. Nb5 {[%emt 0:00:00]} a6 $2 {[%emt 0:00:00] [#]} (21... Ra8 $14) 22. Qc3+ {[%emt 0:00:00]} ({White should try} 22. Qb2+ $1 $18 Nf6 23. Bxc8 Bxc8 24. Nc3) 22... Nf6 $16 {[%emt 0:00:00]} 23. Bxc8 {[%emt 0:00:00] 0x0.00299f40aea5dp-1022s more active pieces.} Bxc8 {[%emt 0:00:00]} 24. Nd4 {[%emt 0:00:00]} h4 {[%emt 0:00:00]} 25. Nf3 {[%emt 0:00:00]} hxg3 {[%emt 0:00:00]} 26. fxg3 {[%emt 0:00:00]} Bb7 {[%emt 0:00:13]} 27. b4 {[%emt 0:00:00]} Qc8 {[%emt 0:01:42] [#]} (27... Qc7 $142) 28. c5 $1 {[%emt 0:00:00]} bxc5 {[%emt 0:01:08]} 29. bxc5 {[%emt 0:00:00]} dxc5 {[%emt 0:00:04]} (29... Qe6 $16) 30. Qxc5 $18 {[%emt 0:00:00]} Qe6 {[%emt 0:04:17]} (30... Qh3 {is a better defense.} 31. Rd2 Rc8) 31. Qe5 {[%emt 0:19:03] Hoping for Qxe6.} Qxa2 {[%emt 0:30:58] aiming for ...Bxf3.} 32. g4 {[%emt 0:00:00]} Kh7 $2 {[%emt 0:00:00]} (32... Be4 33. g5 Qxe2) 33. Qxe7 {[%emt 0:00:00]} Bxf3 {[%emt 0:00:00]} 34. exf3 {[%emt 0:00:00]} ({Wrong is} 34. Ra1 $2 Qxe2 35. Qxe2 Bxe2 $19) (34. Qxf6 $142 {Threatening mate with Rd7.} Bxg4 35. Rc7) 34... Kg7 {[%emt 0:00:00]} 35. Qe5 {[%emt 0:00:00]} Re8 {[%emt 0:00:00]} 36. Qa1 {[%emt 0:00:00]} Qb3 {[%emt 0:00:00]} (36... Qe2 $142 37. Rf1 (37. Re1 Qxf3 38. Rxe8 Qxg4+ 39. Kf2 Qh4+ 40. Kf1 Qf4+ 41. Ke1 Qb4+ 42. Qc3 Qxc3+ 43. Rxc3 Nxe8 $16) 37... Qe3+ 38. Rf2 Kg8) 37. Qc3 {[%emt 0:00:00]} Qb6+ {[%emt 0:00:00]} 38. Kh1 {[%emt 0:00:00] And now g5 would win.} Kg8 {[%emt 0:00:00]} 39. Rb1 {[%emt 0:00:00]} Qe6 {[%emt 0:00:00]} 40. Re1 {[%emt 0:00:00]} Qd6 {[%emt 0:00:00]} 41. Rxe8+ {[%emt 0:00:00]} Nxe8 {[%emt 0:00:00][%mdl 4096] Endgame KQR-KQN} 42. Qe3 {[%emt 0:00:00]} Ng7 {[%emt 0:00:00]} 43. Qb6 {[%emt 0:00:00]} Qd3 {[%emt 0:00:00]} 44. Qb8+ {[%emt 0:00:00]} Kh7 {[%emt 0:00:00]} 45. Qb3 {[%emt 0:00:00]} Qd7 {[%emt 0:00:00]} 46. Qb7 {[%emt 0:00:00]} Qd3 {[%emt 0:00:00]} 47. Qe4 {[%emt 0:00:00]} Qa3 {[%emt 0:00:00]} (47... Qd6 48. Rb7 Qf6) 48. h4 {[%emt 0:00:00][%cal Bh2h4,Bh4h5][%mdl 32]} Ne6 {[%emt 0:00:00]} 49. h5 {[%emt 0:00:00] hxg6+ is the strong threat.} Nf8 {[%emt 0:00:09]} 50. Rb7 {[%emt 0:00:00]} Qa1+ {[%emt 0:00:45]} 51. Kg2 {[%emt 0:00:00] Intending Qf4 and mate.} Qa2+ {[%emt 0:00:05]} 52. Kh3 {[%emt 0:00:00]} Kg8 {[%emt 0:00:14]} 53. Qf4 {[%emt 0:00:00]} Qd5 {[%emt 0:01:02]} 54. Rb8 {[%emt 0:00:54]} gxh5 {[%emt 0:00:48]} 55. gxh5 $2 {[%emt 0:00:07]} (55. Kh4 {White wants to mate with Qb4.} Kg7 56. gxh5) 55... Qxh5+ {[%emt 0:00:12]} 56. Kg3 {[%emt 0:01:45] Strongly threatening Qg4+.} Qc5 $2 {[%emt 0:03:00]} (56... Qd5 57. Qb4 Qe5+ 58. Kh3 Qh5+ 59. Kg2 Qg5+ 60. Kh3 Qh6+ 61. Kg3 a5 62. Qg4+ Kh7) 57. Kg4 {[%emt 0:03:30]} ({Weaker is} 57. Qg4+ Kh7 $16) 57... Qg1+ {[%emt 0:02:06]} 58. Qg3 {[%emt 0:00:05]} Qc5 {[%emt 0:00:12]} 59. Re8 {[%emt 0:04:04] Threatens to win with Kh3+.} Kh7 {[%emt 0:01:57]} 60. Qh4+ {[%emt 0:04:00]} Kg6 {[%emt 0:00:22]} 61. Kh3 {[%emt 0:00:28]} (61. f4 $18) 61... Kg7 $16 {[%emt 0:00:36]} 62. Rd8 {[%emt 0:00:08]} Qa3 {[%emt 0:01:55]} (62... Qc1 $16) 63. Qd4+ $18 {[%emt 0:01:05]} Kg8 {[%emt 0:00:19]} (63... Kg6 $142) 64. Kg3 {[%emt 0:00:18] Qd6 would kill now.} Kh7 $2 {[%emt 0:00:34]} (64... Qe7 $18 65. Qd6 Qe1+ 66. Kg4 Qg1+ 67. Kf5 Qb1+ 68. Kf4 Qc1+ 69. Ke4 Qb1+ 70. Kf4 Qc1+ 71. Ke4 Qe1+ 72. Kf4 Qc1+) 65. Qd3+ {[%emt 0:00:05] White mates.} Qxd3 {[%emt 0:00:28]} 66. Rxd3 {[%emt 0:00:03] KR-KN} Ng6 {[%emt 0:02:01]} 67. Ra3 {[%emt 0:00:08]} Kh6 {[%emt 0:01:13]} 68. Kg4 {[%emt 0:00:08]} Kg7 {[%emt 0:01:07]} 69. Rxa6 {[%emt 0:00:06]} Ne5+ {[%emt 0:00:14]} 70. Kf4 {[%emt 0:00:11]} Ng6+ {[%emt 0:00:29]} 71. Kg5 {[%emt 0:00:10]} Nf8 {[%emt 0:00:52]} 72. Rd6 {[%emt 0:00:58]} Ne6+ {[%emt 0:00:17]} 73. Kf5 {[%emt 0:00:24]} Nf8 {[%emt 0:00:13]} 74. f4 {[%emt 0:00:16][%cal Bf3f4,Bf4f5,Bf5f6][%mdl 32]} Nh7 {[%emt 0:00:46]} 75. Rd1 {[%emt 0:00:28]} Kf8 {[%emt 0:00:43]} 76. Ke5 {[%emt 0:01:17]} Ke7 {[%emt 0:00:15]} 77. Ra1 {[%emt 0:00:26]} Kf8 {[%emt 0:00:37]} 78. f5 {[%emt 0:03:03]} Ng5 {[%emt 0:00:39]} 79. f6 {[%emt 0:00:37][%cal Ra1a8]} Ke8 {[%emt 0:00:06]} 80. Ra7 {[%emt 0:00:27]} Nh7 {[%emt 0:00:24]} 81. Ke4 $2 {[%emt 0:22:46][%mdl 32768] Weighted Error Value: White=0.33/Black=0.38. Sensor Board Error (Ke4/e5)?} (81. Kd6 {mates} Nxf6 82. Ra8#) 1-0

[Event "2nd Bassano Easter 2022"]
[Site "Bassano del Grappa"]
[Date "2022.04.17"]
[Round "8.6"]
[White "Nandhidhaa, P V"]
[Black "Nesterov, Arseniy"]
[Result "0-1"]
[ECO "A30"]
[WhiteElo "2380"]
[BlackElo "2522"]
[Annotator "TA"]
[PlyCount "40"]
[EventDate "2022.04.14"]
[EventType "swiss"]
[EventCountry "ITA"]
[SourceTitle "playchess.com"]
[Source "ChessBase"]
[SourceQuality "1"]
[TimeControl "30/3600+30:1800+30"]

{[%evp 24,30,38,34,46,51,60,71,68]} 1. Nf3 {[%emt 0:00:11]} c5 {[%emt 0:02:38]} 2. c4 {[%emt 0:00:10]} Nf6 {[%emt 0:01:44]} 3. g3 {[%emt 0:00:05]} b6 {[%emt 0:01:32]} 4. Bg2 {[%emt 0:00:07]} Bb7 {[%emt 0:00:07]} 5. O-O {[%emt 0:00:09]} g6 {[%emt 0:01:45]} 6. d4 {[%emt 0:00:19]} cxd4 {[%emt 0:00:11]} 7. Qd2 {[%emt 1:02:59]} d3 8. Qxd3 {[%emt 0:00:00]} Bg7 {[%emt 0:00:50]} 9. Qd4 {[%emt 0:00:00]} d6 {[%emt 0:01:11]} 10. Nc3 {[%emt 0:00:00]} Nbd7 {[%emt 0:01:42]} 11. Be3 {[%emt 0:00:00]} Rb8 {[%emt 0:54:20]} 12. Rac1 Rc8 {[%emt 0:00:00]} 13. Rfd1 {[%emt 0:00:00]} h6 {[%emt 0:00:00] A30: Symmetrical English: Double Fianchetto and Hedgehog.} 14. b3 {[%emt 0:00:00]} O-O {[%emt 0:00:00][%cal Of6e4]} 15. Qd2 {[%emt 0:00:00]} h5 {[%emt 0:00:00][%mdl 32768] [#] Loss on time!?} {Predecessor:} 16. h3 $146 a6 17. Bh6 Rc5 18. Be3 Rc8 19. Bh6 Rc5 20. Be3 Rc8 {½-½ (18) Olsen,H (2345)-Lund,S (2292) Dianalund 2005} 0-1